bitfinex/quotes_BTCUSD_20220304
["timestamp","ask_amount","ask_price","bid_price","bid_amount"]
[1646427918698,0.3884118,39486.0,39485.0,0.8577277]
[1646427918948,0.3884118,39486.0,39485.0,1.67316824]
[1646427919151,0.31157603,39497.0,39487.0,0.80256]
[1646427919349,0.42684236,39500.0,39488.0,1.2031426]
[1646427919350,0.31157603,39499.0,39488.0,1.2031426]
[1646427919547,0.31157603,39499.0,39489.0,0.0467]
[1646427920253,0.340025,39509.0,39489.0,0.0467]
[1646427920254,0.31073165,39503.0,39494.0,0.15]
[1646427920450,0.31073165,39509.0,39495.0,0.8617723]
[1646427920647,0.31073165,39509.0,39497.0,0.7773]
[1646427920853,0.41,39516.0,39499.0,0.7773]
[1646427921051,0.184998,39515.0,39506.0,0.26329744]
[1646427921248,0.01125295,39514.0,39506.0,0.30999744]
[1646427921848,0.01125295,39514.0,39506.0,1.08729744]
[1646427922052,0.00017341,39512.0,39506.0,0.30999744]
[1646427922246,0.00017341,39512.0,39506.0,0.0467]
[1646427922448,0.184998,39511.0,39506.0,0.0467]
[1646427922720,0.184998,39511.0,39490.0,0.18994991]
[1646427922721,0.01380304,39509.0,39499.0,0.0467]
[1646427922922,0.01380304,39509.0,39492.0,0.8396]
[1646427922923,0.184998,39508.0,39496.0,0.0467]
[1646427923118,0.01380304,39509.0,39496.0,0.0467]
[1646427923119,0.184998,39504.0,39496.0,0.0467]
[1646427923318,0.12255393,39500.0,39496.0,0.0467]
[1646427923519,0.26069077,39499.0,39496.0,0.0467]
[1646427923720,0.01451909,39497.0,39496.0,0.28137713]
[1646427924121,0.01451909,39497.0,39496.0,0.0467]
[1646427924319,0.126687,39501.0,39500.0,2.92213991]
[1646427924519,0.311685,39501.0,39500.0,2.92213991]
[1646427926552,0.184998,39501.0,39500.0,2.92213991]
[1646427926952,0.06350684,39502.0,39500.0,2.92213991]
[1646427927753,0.06350684,39502.0,39500.0,3.16905251]
[1646427927754,0.184998,39501.0,39500.0,3.16905251]
[1646427927956,0.126674,39502.0,39500.0,3.16905251]
[1646427928155,0.126674,39502.0,39500.0,2.70197245]
[1646427928351,0.126674,39502.0,39500.0,2.45505985]
[1646427928952,0.184998,39501.0,39500.0,2.45505985]
[1646427929152,0.126674,39502.0,39500.0,2.45505985]
[1646427929552,0.184998,39501.0,39500.0,2.45505985]
[1646427930296,0.063337,39502.0,39500.0,1.6237685]
[1646427930498,0.00017043,39502.0,39500.0,1.6237685]
[1646427930700,0.00017043,39502.0,39500.0,1.6326685]
[1646427930701,0.25529811,39502.0,39500.0,1.6326685]
[1646427930996,0.00017043,39502.0,39500.0,1.6326685]
[1646427931395,0.184998,39504.0,39500.0,1.6326685]
[1646427931593,0.00017045,39503.0,39500.0,1.6326685]
[1646427932094,0.00017045,39503.0,39500.0,1.6237685]
[1646427932295,0.18955112,39502.0,39500.0,1.6237685]
[1646427932598,0.127676,39505.0,39500.0,1.6237685]
[1646427932599,0.001,39505.0,39500.0,1.6237685]
[1646427932794,0.00017045,39503.0,39500.0,1.6237685]
[1646427933399,0.00017045,39503.0,39501.0,0.4204995]
[1646427933849,0.126648,39510.0,39501.0,0.4204995]
[1646427934049,0.00017008,39503.0,39501.0,0.29047327]
[1646427934250,0.00017008,39503.0,39500.0,1.6237685]
[1646427935049,0.0089,39503.0,39500.0,1.6237685]
[1646427935252,0.0089,39503.0,39500.0,1.6326685]
[1646427935253,0.00017024,39503.0,39500.0,1.6326685]
[1646427936249,0.07887242,39505.0,39501.0,0.15385355]
[1646427936450,0.00017024,39503.0,39500.0,1.6326685]
[1646427936649,0.01222759,39502.0,39500.0,1.6326685]
[1646427936849,0.01188285,39501.0,39500.0,1.6326685]
[1646427937050,0.00017024,39503.0,39500.0,1.6326685]
[1646427937451,0.063326,39509.0,39502.0,0.11988575]
[1646427937698,0.00017009,39502.0,39500.0,1.6237685]
[1646427937899,0.00017009,39502.0,39500.0,1.6326685]
[1646427938498,0.126649,39509.0,39500.0,1.6326685]
[1646427938701,0.0021307,39503.0,39500.0,1.6326685]
[1646427938898,0.00230044,39503.0,39500.0,1.6326685]
[1646427939100,0.00230044,39503.0,39500.0,1.6237685]
[1646427939299,0.00230044,39503.0,39502.0,0.29801865]
[1646427939702,0.0021307,39503.0,39502.0,0.29801865]
[1646427940405,0.0021307,39503.0,39500.0,1.6237685]
[1646427940608,0.184998,39502.0,39500.0,1.6237685]
[1646427940804,0.184998,39502.0,39500.0,1.36126848]
[1646427941004,0.234998,39502.0,39500.0,1.36126848]
[1646427941351,0.56984942,39501.0,39500.0,1.36126848]
[1646427942348,0.76984942,39501.0,39500.0,1.36126848]
[1646427942547,1.1900312,39501.0,39500.0,1.259918]
[1646427942747,1.1900312,39501.0,39500.0,0.499588]
[1646427942748,1.19483696,39501.0,39500.0,0.499588]
[1646427944150,1.19483696,39501.0,39500.0,0.46204742]
[1646427944351,1.19483696,39501.0,39500.0,0.45704742]
[1646427944552,0.86984942,39501.0,39500.0,0.45704742]
[1646427944754,1.19359056,39501.0,39500.0,0.45704742]
[1646427945696,0.86984942,39501.0,39500.0,0.45704742]
[1646427946096,1.1931985,39501.0,39500.0,0.33447946]
[1646427946697,0.86984942,39501.0,39500.0,0.33447946]
[1646427946898,0.71984942,39501.0,39500.0,0.33447946]
[1646427947198,0.47545903,39501.0,39500.0,0.33447946]
[1646427947998,0.76930229,39501.0,39500.0,0.33447946]
[1646427948597,0.20450734,39502.0,39500.0,0.33447946]
[1646427949252,0.27675934,39502.0,39500.0,0.33447946]
[1646427949453,0.26768929,39502.0,39500.0,0.33447946]
[1646427949651,0.60595153,39502.0,39500.0,0.33447946]
[1646427949855,0.51946224,39502.0,39501.0,0.2]
[1646427950052,0.51946224,39502.0,39500.0,0.33447946]
[1646427950053,0.12659975,39501.0,39500.0,0.34645751]
[1646427950254,0.5608169,39501.0,39500.0,0.33447946]
[1646427950453,0.6108169,39501.0,39500.0,0.33447946]
[1646427950655,0.6108169,39501.0,39500.0,0.32114599]
[1646427950855,0.6575169,39501.0,39500.0,0.32114599]
[1646427951251,0.6575169,39501.0,39500.0,0.2160836]
[1646427951455,0.6575169,39501.0,39493.0,0.07728865]
[1646427951456,0.07612779,39500.0,39493.0,0.07728865]
[1646427951659,0.07612779,39500.0,39489.0,0.03836865]
[1646427951660,0.45836398,39494.0,39489.0,0.03836865]
[1646427951857,0.15,39490.0,39489.0,0.03836865]
[1646427952356,0.15,39490.0,39471.0,0.584]
[1646427952357,0.50721424,39490.0,39481.0,0.127757]
[1646427952624,0.15,39482.0,39481.0,0.127757]
[1646427952813,0.05,39483.0,39481.0,0.127757]
[1646427953012,0.149,39482.0,39481.0,0.127757]
[1646427953212,0.249,39482.0,39481.0,0.127757]
[1646427953413,0.249,39482.0,39481.0,0.16612565]
[1646427953612,0.2957,39482.0,39481.0,0.16612565]
[1646427954012,0.2957,39482.0,39481.0,0.001]
[1646427954215,0.2957,39482.0,39481.0,0.03936865]
[1646427954413,0.1957,39482.0,39481.0,0.03936865]
[1646427954611,0.2957,39482.0,39481.0,0.03936865]
[1646427955212,0.06338392,39495.0,39490.0,0.13888163]
[1646427955412,0.23949327,39491.0,39490.0,0.12227168]
[1646427955613,0.28619327,39491.0,39490.0,0.17227168]
[1646427955814,0.16691504,39491.0,39490.0,0.17227168]
[1646427957251,0.21691504,39491.0,39490.0,0.17227168]
[1646427957451,0.31691504,39491.0,39490.0,0.17227168]
[1646427958552,0.21691504,39491.0,39490.0,0.17227168]
[1646427958753,0.31691504,39491.0,39490.0,0.17227168]
[1646427960199,0.31691504,39491.0,39483.0,0.25100527]
[1646427960200,0.81794097,39491.0,39483.0,0.25100527]
[1646427960403,0.1,39490.0,39486.0,0.03836865]
[1646427960603,0.51470517,39491.0,39487.0,0.3]
[1646427960903,0.51470517,39491.0,39489.0,0.03836865]
[1646427961303,0.51470517,39491.0,39489.0,0.3363565]
[1646427961501,0.51470517,39491.0,39489.0,0.03836865]
[1646427961906,0.51470517,39491.0,39487.0,0.063376]
[1646427961907,0.51470517,39491.0,39487.0,0.10174465]
[1646427962302,0.51470517,39491.0,39488.0,0.05]
[1646427962703,0.51470517,39491.0,39490.0,0.03836865]
[1646427963107,0.51470517,39491.0,39490.0,0.08836865]
[1646427963108,0.51489249,39491.0,39490.0,0.08836865]
[1646427963504,0.61675195,39491.0,39490.0,0.08836865]
[1646427963703,0.61489249,39491.0,39490.0,0.08836865]
[1646427963952,0.61470517,39491.0,39490.0,0.08836865]
[1646427965350,0.61470517,39491.0,39490.0,0.3455338]
[1646427965751,0.61470517,39491.0,39490.0,0.03836865]
[1646427965951,0.61470517,39491.0,39490.0,0.00056788]
[1646427968100,0.61470517,39491.0,39489.0,0.063368]
[1646427968298,0.1,39490.0,39489.0,0.02544717]
[1646427968500,0.1,39490.0,39488.0,0.03794357]
[1646427968900,0.1,39490.0,39489.0,0.25203216]
[1646427969101,0.51487938,39491.0,39489.0,0.25203216]
[1646427969301,0.51487938,39491.0,39489.0,0.31540016]
[1646427970003,0.51470517,39491.0,39489.0,0.063368]
[1646427971205,0.51470517,39491.0,39488.0,0.03794357]
[1646427971206,0.4,39490.0,39488.0,0.03794357]
[1646427971463,0.01394425,39489.0,39488.0,0.03794357]
[1646427971661,0.06064425,39489.0,39481.0,0.001]
[1646427972061,0.30702069,39487.0,39481.0,0.001]
[1646427972261,0.4467,39486.0,39481.0,0.001]
[1646427972562,0.01465675,39485.0,39481.0,0.001]
[1646427972760,0.0467,39484.0,39481.0,0.001]
[1646427973859,0.1467,39484.0,39481.0,0.001]
[1646427974259,0.1967,39484.0,39481.0,0.001]
[1646427974659,0.01288279,39482.0,39481.0,0.001]
[1646427974858,0.05958279,39482.0,39481.0,0.001]
[1646427975106,0.0467,39482.0,39481.0,0.001]
[1646427976403,0.0467,39482.0,39481.0,0.00090001]
[1646427976404,0.4467,39482.0,39481.0,0.00090001]
[1646427976604,0.54855946,39482.0,39481.0,0.00090001]
[1646427977406,1.33052531,39482.0,39466.0,0.0011]
[1646427977608,0.5838,39471.0,39450.0,0.0031]
[1646427977805,2.17920001,39479.0,39450.0,0.0031]
[1646427977806,0.5838,39464.0,39450.0,0.0031]
[1646427978006,0.5838,39464.0,39453.0,0.39463747]
[1646427978007,0.06616999,39455.0,39453.0,0.39463747]
[1646427978205,0.06616999,39455.0,39448.0,1e-08]
[1646427978206,0.28182317,39440.0,39434.0,0.54730882]
[1646427978404,0.36346798,39443.0,39440.0,0.27504275]
[1646427978603,0.1,39443.0,39440.0,0.24437814]
[1646427978859,0.110167,39442.0,39440.0,0.24437814]
[1646427979060,0.0967,39442.0,39440.0,0.24437814]
[1646427979456,0.0967,39442.0,39440.0,0.51203646]
[1646427979457,0.0467,39442.0,39440.0,0.51203646]
[1646427979660,0.007,39445.0,39441.0,1.63119302]
[1646427979856,0.0467,39444.0,39442.0,0.29154915]
[1646427980055,0.03834949,39451.0,39443.0,0.15]
[1646427980056,0.03851969,39451.0,39443.0,0.15]
[1646427980263,0.0467,39450.0,39443.0,0.2]
[1646427980459,0.0467,39450.0,39441.0,0.28229302]
[1646427980660,0.0467,39450.0,39441.0,0.0011]
[1646427980858,0.3,39449.0,39441.0,0.0011]
[1646427981157,0.8967,39448.0,39443.0,0.00012313]
[1646427981359,0.1,39447.0,39443.0,0.00012313]
[1646427981558,0.0467,39446.0,39443.0,0.00012313]
[1646427982357,0.0467,39446.0,39441.0,0.00012313]
[1646427982616,1.4,39444.0,39432.0,0.002]
[1646427982815,1.4,39444.0,39431.0,0.001]
[1646427982816,1.35331897,39443.0,39431.0,0.001]
[1646427983017,1.35331897,39443.0,39427.0,0.191357]
[1646427983018,0.06347061,39442.0,39427.0,0.001]
[1646427983211,0.3967,39441.0,39429.0,0.063468]
[1646427983412,0.0467,39440.0,39429.0,0.063468]
[1646427983611,0.3,39439.0,39429.0,0.063468]
[1646427983813,0.0467,39438.0,39429.0,0.063468]
[1646427984213,0.1967,39438.0,39429.0,0.21144655]
[1646427984613,0.260166,39438.0,39431.0,0.28105516]
[1646427985013,0.0142168,39437.0,39431.0,0.28105516]
[1646427985213,0.0467,39436.0,39434.0,0.22542203]
[1646427985415,0.0467,39436.0,39432.0,0.126922]
[1646427985614,0.0467,39436.0,39433.0,0.05]
[1646427986454,0.0467,39436.0,39435.0,0.28366634]
[1646427986755,0.0467,39436.0,39435.0,0.43719865]
[1646427986756,0.14855946,39436.0,39435.0,0.43719865]
[1646427986952,0.14855946,39436.0,39435.0,0.28366634]
[1646427987152,0.10185946,39436.0,39435.0,0.28366634]
[1646427987757,0.03812523,39440.0,39436.0,0.05]
[1646427987958,0.03812523,39440.0,39437.0,0.063451]
[1646427988557,0.08812523,39440.0,39437.0,0.063451]
[1646427989559,0.08812523,39440.0,39437.0,0.058451]
[1646427990798,0.03812523,39440.0,39437.0,0.058451]
[1646427991002,0.01206791,39449.0,39437.0,0.058451]
[1646427991300,0.13484949,39451.0,39443.0,0.063439]
[1646427991301,0.14729506,39451.0,39443.0,0.063439]
[1646427991499,0.006,39446.0,39443.0,0.126878]
[1646427991900,0.006,39446.0,39444.0,0.21896563]
[1646427992300,0.006,39446.0,39444.0,0.26896563]
[1646427992900,0.063441,39450.0,39444.0,0.26896563]
[1646427992901,0.063441,39450.0,39446.0,0.13399466]
[1646427993301,0.063441,39450.0,39448.0,0.06344]
[1646427994255,0.063441,39450.0,39448.0,0.0235677]
[1646427994451,0.063441,39450.0,39446.0,0.05]
[1646427994452,0.01625131,39447.0,39446.0,0.05]
[1646427994650,0.03206531,39447.0,39444.0,0.00010311]
[1646427994850,0.06345,39446.0,39444.0,0.00010311]
[1646427995452,0.01261068,39445.0,39444.0,0.00010311]
[1646427995654,0.12552896,39446.0,39444.0,0.00010311]
[1646427995855,0.12552896,39446.0,39428.0,0.001]
[1646427995856,1.4,39444.0,39428.0,0.001]
[1646427996052,0.02417142,39440.0,39428.0,0.001]
[1646427996250,0.02417142,39440.0,39430.0,0.11676455]
[1646427996251,0.01543745,39438.0,39430.0,0.11676455]
[1646427996452,0.4467,39443.0,39428.0,0.001]
[1646427996453,0.01439302,39435.0,39429.0,0.21826916]
[1646427996850,0.01439302,39435.0,39428.0,0.064472]
[1646427997452,0.01439302,39435.0,39428.0,0.064471]
[1646427997699,0.79169302,39435.0,39425.0,0.126938]
[1646427997901,0.79169302,39435.0,39419.0,0.001]
[1646427997902,1.12867996,39434.0,39422.0,0.15]
[1646427998104,0.01325351,39431.0,39422.0,0.1459]
[1646427998302,0.0467,39430.0,39422.0,0.1459]
[1646427998500,0.07809241,39429.0,39422.0,0.1459]
[1646427998699,0.0467,39428.0,39422.0,0.1459]
[1646427998899,0.0467,39428.0,39427.0,0.1459]
[1646427999100,0.0467,39428.0,39427.0,0.05199547]
[1646427999699,0.14855946,39428.0,39427.0,0.05199547]
[1646428000098,0.19855946,39428.0,39427.0,0.05199547]
[1646428000500,0.32553146,39428.0,39424.0,7.996e-05]
[1646428000699,0.1,39427.0,39424.0,7.996e-05]
[1646428001350,0.1,39427.0,39421.0,0.002]
[1646428001351,0.1467,39427.0,39421.0,0.002]
[1646428001551,0.1467,39427.0,39425.0,0.05199547]
[1646428001752,0.1,39427.0,39426.0,0.25832149]
[1646428001952,0.006,39432.0,39426.0,0.25832149]
[1646428002152,0.006,39432.0,39427.0,0.15793011]
[1646428002352,0.006,39432.0,39431.0,0.05199547]
[1646428002553,0.05137996,39445.0,39432.0,1.4]
[1646428002554,0.01543618,39445.0,39432.0,1.4]
[1646428002756,0.01329132,39449.0,39443.0,0.05199547]
[1646428002757,0.0149803,39449.0,39443.0,0.05199547]
[1646428002953,0.20719537,39454.0,39443.0,0.05199547]
[1646428002954,0.01354141,39454.0,39443.0,0.05199547]
[1646428003153,0.00019311,39453.0,39446.0,0.05199547]
[1646428003354,0.00019311,39453.0,39446.0,0.11543547]
[1646428003557,0.00019311,39453.0,39449.0,0.05199547]
[1646428003759,0.00019311,39453.0,39448.0,0.05]
[1646428003953,0.03792266,39453.0,39450.0,0.05199547]
[1646428004154,0.126881,39455.0,39450.0,0.05199547]
[1646428004355,0.126881,39455.0,39450.0,0.01122919]
[1646428004753,0.10077023,39455.0,39454.0,0.32260299]
[1646428004955,0.20262969,39455.0,39453.0,0.063435]
[1646428005201,0.10077023,39455.0,39449.0,0.26765115]
[1646428005400,0.11395741,39455.0,39449.0,0.26765115]
[1646428005602,0.11395741,39455.0,39449.0,0.07466919]
[1646428006001,0.11395741,39455.0,39448.0,0.05]
[1646428006206,0.11395741,39455.0,39447.0,0.01122919]
[1646428006208,0.01269423,39453.0,39447.0,0.01122919]
[1646428006402,0.063457,39449.0,39438.0,0.5643]
[1646428006603,0.000262,39445.0,39443.0,7.394e-05]
[1646428007102,0.12718,39445.0,39443.0,7.394e-05]
[1646428007303,0.000262,39445.0,39443.0,7.394e-05]
[1646428007705,0.000262,39445.0,39440.0,0.2427307]
[1646428007903,0.000262,39445.0,39440.0,0.24280464]
[1646428008106,0.000262,39445.0,39442.0,0.12052935]
[1646428008303,0.000262,39445.0,39442.0,0.17052935]
[1646428008506,0.000262,39445.0,39443.0,0.063445]
[1646428009157,0.000262,39445.0,39444.0,0.14797759]
[1646428009458,0.000262,39445.0,39444.0,0.26201311]
[1646428010062,0.005,39451.0,39444.0,0.68727311]
[1646428010260,0.3,39461.0,39448.0,0.02526]
[1646428010459,0.07661957,39462.0,39448.0,0.05]
[1646428010460,0.1019233,39462.0,39448.0,0.05]
[1646428010659,0.1019233,39462.0,39453.0,0.24359102]
[1646428010660,0.31373197,39461.0,39453.0,0.24359102]
[1646428010858,0.31373197,39461.0,39445.0,0.35467549]
[1646428010859,0.01373197,39461.0,39445.0,0.40467549]
[1646428011060,0.30308108,39459.0,39450.0,0.31614247]
[1646428011263,0.07479965,39457.0,39445.0,0.367142]
[1646428011460,0.3,39456.0,39445.0,0.367142]
[1646428011658,0.01136965,39457.0,39448.0,0.063441]
[1646428011659,0.01244002,39454.0,39448.0,0.063441]
[1646428011858,0.01244002,39454.0,39449.0,0.26072751]
[1646428012159,0.126887,39455.0,39449.0,0.05]
[1646428012358,0.00018681,39453.0,39449.0,0.05]
[1646428012799,0.00018681,39453.0,39450.0,0.063437]
[1646428013401,0.113431,39458.0,39453.0,0.12685]
[1646428013702,0.11166781,39459.0,39454.0,0.063423]
[1646428013703,0.1,39459.0,39454.0,0.063423]
[1646428013904,0.20728292,39460.0,39458.0,0.24689162]
[1646428014103,0.01319757,39466.0,39458.0,0.24689162]
[1646428014104,0.20728292,39464.0,39458.0,0.24689162]
[1646428014300,0.20728292,39464.0,39458.0,0.06967474]
[1646428014501,0.20728292,39465.0,39458.0,0.06967474]
[1646428014901,0.20728292,39465.0,39461.0,0.063413]
[1646428015103,0.00018605,39463.0,39461.0,0.063413]
[1646428015302,0.20746897,39463.0,39459.0,0.126834]
[1646428015503,0.20728292,39462.0,39459.0,0.126834]
[1646428015706,0.25909458,39461.0,39459.0,0.126834]
[1646428015904,0.25909458,39461.0,39459.0,0.135734]
[1646428016206,0.20741055,39460.0,39459.0,0.135734]
[1646428016474,0.20741419,39460.0,39459.0,0.135734]
[1646428016670,0.072325,39461.0,39459.0,0.135734]
[1646428016671,0.0178,39461.0,39459.0,0.135734]
[1646428016870,0.27689458,39461.0,39459.0,0.0089]
[1646428017272,0.25909458,39460.0,39459.0,0.0089]
[1646428017471,0.29966901,39460.0,39450.0,0.5655]
[1646428017774,0.2075248,39454.0,39453.0,0.063432]
[1646428018572,0.2075248,39454.0,39453.0,0.31774291]
[1646428018771,0.00016862,39455.0,39454.0,0.32843763]
[1646428019276,0.00016862,39455.0,39450.0,0.16496894]
[1646428019277,0.20769789,39455.0,39450.0,0.16496894]
[1646428019574,0.25940601,39454.0,39452.0,0.063432]
[1646428019771,0.25940601,39454.0,39453.0,0.063432]
[1646428019971,0.25940601,39454.0,39453.0,0.28740331]
[1646428020224,0.25940601,39454.0,39453.0,0.063432]
[1646428020620,0.31121538,39456.0,39453.0,0.063432]
[1646428020821,0.00018694,39455.0,39453.0,0.063432]
[1646428021020,0.31140232,39455.0,39453.0,0.063432]
[1646428021525,0.25956787,39454.0,39453.0,0.063432]
[1646428022321,0.31140232,39456.0,39453.0,0.063432]
[1646428022522,0.2595766,39454.0,39453.0,0.063432]
[1646428022721,0.31140232,39456.0,39453.0,0.063432]
[1646428022722,0.31121538,39455.0,39453.0,0.063432]
[1646428022923,0.3075379,39448.0,39446.0,0.126873]
[1646428023125,0.3075379,39448.0,39441.0,0.5489]
[1646428023126,0.3,39447.0,39441.0,0.5489]
[1646428023324,0.20773623,39442.0,39440.0,0.063454]
[1646428023521,0.27118923,39443.0,39441.0,8.578e-05]
[1646428024158,0.20773623,39442.0,39440.0,0.063454]
[1646428024460,0.20773623,39442.0,39440.0,0.126906]
[1646428024654,0.3228947,39442.0,39440.0,0.063454]
[1646428024855,0.20773623,39441.0,39440.0,0.063454]
[1646428025455,0.20775159,39441.0,39440.0,0.063454]
[1646428025856,0.20775159,39442.0,39440.0,0.126902]
[1646428026057,0.20775159,39443.0,39440.0,0.126902]
[1646428026255,0.05775159,39444.0,39443.0,0.26868154]
[1646428026456,0.05775159,39444.0,39442.0,0.126882]
[1646428026660,0.25967029,39446.0,39442.0,0.126882]
[1646428027257,0.25467029,39446.0,39442.0,0.126882]
[1646428027458,0.25467029,39446.0,39443.0,0.28716435]
[1646428027702,0.25467029,39446.0,39443.0,0.35061035]
[1646428027902,0.25467029,39446.0,39443.0,0.41405035]
[1646428028105,0.31157722,39449.0,39444.0,0.34342245]
[1646428028304,0.31157722,39450.0,39444.0,0.34342245]
[1646428028607,0.35566434,39452.0,39444.0,0.34342245]
[1646428029006,0.35566434,39452.0,39444.0,0.2257943]
[1646428029007,0.31157722,39451.0,39444.0,0.2257943]
[1646428029208,0.31157722,39450.0,39444.0,0.2257943]
[1646428029804,0.36321985,39452.0,39443.0,0.126886]
[1646428029805,0.36321985,39452.0,39450.0,0.18842278]
[1646428030005,0.19800522,39452.0,39450.0,0.14461429]
[1646428030207,0.19800522,39452.0,39450.0,0.09007429]
[1646428030208,0.61125842,39451.0,39450.0,0.09007429]
[1646428030605,0.65795842,39451.0,39450.0,0.09007429]
[1646428030804,0.65795842,39451.0,39450.0,0.03025893]
[1646428031008,1.15,39450.0,39441.0,7.506e-05]
[1646428031210,0.32032467,39444.0,39443.0,0.126895]
[1646428031454,0.36360775,39445.0,39443.0,0.126895]
[1646428031856,0.36360775,39445.0,39443.0,0.135795]
[1646428032055,0.1,39444.0,39443.0,0.0089]
[1646428032454,0.163453,39444.0,39443.0,0.0089]
[1646428033055,0.163453,39444.0,39440.0,0.1269824]
[1646428033056,0.52706075,39444.0,39440.0,0.1269824]
[1646428033854,0.52706075,39444.0,39440.0,0.126906]
[1646428034261,0.52706075,39444.0,39441.0,0.06345]
[1646428034262,0.1,39444.0,39441.0,0.06345]
[1646428034459,0.1,39444.0,39443.0,0.005]
[1646428037204,0.163454,39444.0,39443.0,0.005]
[1646428038004,0.063454,39444.0,39443.0,0.005]
[1646428038606,0.8,39443.0,39442.0,0.063448]
[1646428038854,1.56356959,39443.0,39440.0,0.126906]
[1646428039058,0.46357924,39442.0,39440.0,0.12698701]
[1646428039254,0.06346,39439.0,39432.0,1.01485136]
[1646428039454,0.25969671,39437.0,39432.0,0.15765136]
[1646428039656,0.25969671,39438.0,39434.0,0.3101458]
[1646428039853,0.25969671,39438.0,39435.0,0.063456]
[1646428040253,0.25969671,39439.0,39435.0,0.27449148]
[1646428041256,0.063461,39438.0,39435.0,0.27449148]
[1646428041457,0.063461,39438.0,39436.0,0.063461]
[1646428042454,0.25969671,39439.0,39436.0,0.063461]
[1646428042899,0.25969671,39440.0,39437.0,0.2659319]
[1646428043300,0.25969671,39440.0,39438.0,0.16153206]
[1646428043501,0.063454,39443.0,39438.0,0.16153206]
[1646428043502,0.25969671,39441.0,39438.0,0.16153206]
[1646428043701,0.190381,39450.0,39438.0,0.16153206]
[1646428043702,0.25969671,39442.0,39438.0,0.16153206]
[1646428043902,0.25969671,39441.0,39438.0,0.16153206]
[1646428044104,0.25969671,39441.0,39437.0,0.06554422]
[1646428044302,0.25969671,39440.0,39437.0,0.06554422]
[1646428044501,0.25969671,39439.0,39437.0,0.00209522]
[1646428045102,0.25969671,39439.0,39437.0,0.2187125]
[1646428045703,0.25969671,39438.0,39437.0,0.2187125]
[1646428046355,0.25969671,39439.0,39437.0,0.2187125]
[1646428046751,0.25969671,39439.0,39437.0,0.00209522]
[1646428047153,0.25969671,39438.0,39437.0,0.00209522]
[1646428047355,0.31163605,39439.0,39437.0,0.00209522]
[1646428047556,0.36357924,39439.0,39437.0,0.00209522]
[1646428047756,0.46357924,39438.0,39437.0,0.00209522]
[1646428047953,0.90845359,39438.0,39434.0,8.073e-05]
[1646428048156,0.14999999,39435.0,39434.0,8.073e-05]
[1646428048354,0.063489,39432.0,39420.0,0.0011]
[1646428048555,0.207845,39426.0,39420.0,0.0011]
[1646428048754,0.207845,39425.0,39420.0,0.0011]
[1646428048953,0.35980626,39427.0,39420.0,0.0011]
[1646428048954,0.207845,39424.0,39420.0,0.0011]
[1646428049160,0.40650626,39427.0,39422.0,0.126963]
[1646428049161,0.207845,39425.0,39422.0,0.126963]
[1646428050116,0.207845,39425.0,39423.0,0.063477]
[1646428050313,0.207845,39426.0,39423.0,0.063477]
[1646428050711,0.34566031,39427.0,39423.0,0.063477]
[1646428050909,0.307845,39427.0,39423.0,0.063477]
[1646428051212,0.1,39426.0,39423.0,0.063477]
[1646428051509,0.307845,39428.0,39427.0,0.28678445]
[1646428051510,0.1,39428.0,39427.0,0.28678445]
[1646428051709,0.207845,39431.0,39427.0,0.57669735]
[1646428051910,0.03826572,39439.0,39428.0,0.9]
[1646428051911,0.207845,39433.0,39428.0,0.9]
[1646428052109,0.03826572,39439.0,39430.0,0.11903187]
[1646428052110,0.207845,39434.0,39430.0,0.11903187]
[1646428052511,0.207845,39434.0,39431.0,0.02526]
[1646428052813,0.25980626,39437.0,39431.0,0.02526]
[1646428052814,0.25980626,39437.0,39431.0,0.14227026]
[1646428053009,0.2596812,39439.0,39433.0,0.19033]
[1646428053209,0.31176751,39441.0,39434.0,0.3]
[1646428053210,0.2596812,39441.0,39434.0,0.3]
[1646428053410,0.0096812,39442.0,39435.0,0.02526]
[1646428053614,0.0096812,39442.0,39436.0,0.25380414]
[1646428053857,0.31176751,39445.0,39438.0,0.23904883]
[1646428054061,0.31176751,39445.0,39444.0,0.2565507]
[1646428054458,0.31176751,39446.0,39444.0,0.5565507]
[1646428054664,0.36372876,39449.0,39445.0,0.3]
[1646428054665,0.31176751,39449.0,39445.0,0.3]
[1646428054859,0.00018693,39446.0,39444.0,0.2565507]
[1646428055060,0.31176751,39450.0,39445.0,1.75833163]
[1646428055271,0.26500876,39452.0,39446.0,1.87526]
[1646428055465,0.46736404,39472.0,39452.0,0.25]
[1646428055660,0.5,39471.0,39458.0,0.02526]
[1646428055858,0.05297633,39475.0,39458.0,0.02526]
[1646428056056,0.8958,39478.0,39458.0,0.02526]
[1646428056257,0.8958,39478.0,39468.0,0.21050684]
[1646428056463,0.25381913,39477.0,39468.0,0.12679]
[1646428056656,0.25381913,39477.0,39468.0,0.17679]
[1646428056860,0.25381913,39477.0,39466.0,0.12679]
[1646428056861,0.01314886,39467.0,39466.0,0.12679]
[1646428057062,0.01314886,39467.0,39456.0,0.3]
[1646428057257,0.01314886,39467.0,39455.0,0.553607]
[1646428057613,0.01314886,39467.0,39465.0,0.063417]
[1646428058018,0.01314886,39467.0,39464.0,0.0328574]
[1646428058414,0.01314886,39467.0,39464.0,0.0262174]
[1646428058615,0.01314886,39467.0,39465.0,0.063417]
[1646428058815,0.05,39469.0,39466.0,0.063415]
[1646428059213,0.16577424,39472.0,39466.0,0.063415]
[1646428059414,0.00018708,39468.0,39466.0,0.063415]
[1646428060215,0.1,39471.0,39466.0,0.063415]
[1646428060621,0.00018708,39469.0,39468.0,0.126812]
[1646428060822,0.00018708,39469.0,39468.0,0.176812]
[1646428061470,0.063408,39471.0,39468.0,0.176812]
[1646428061654,0.0871221,39473.0,39468.0,0.176812]
[1646428061856,0.00018708,39470.0,39468.0,0.176812]
[1646428062056,0.00018708,39470.0,39469.0,0.20750824]
[1646428062458,0.11341364,39470.0,39469.0,0.14243544]
[1646428062653,0.11341364,39470.0,39469.0,0.47984198]
[1646428062854,0.0380653,39475.0,39469.0,0.47984198]
[1646428063054,0.0380653,39475.0,39473.0,0.25052621]
[1646428063259,0.0380653,39475.0,39473.0,0.30052621]
[1646428063655,0.47854318,39480.0,39473.0,0.30052621]
[1646428063857,0.063394,39480.0,39473.0,0.36392121]
[1646428064059,0.41514918,39482.0,39479.0,0.2663056]
[1646428064262,0.12679,39483.0,39479.0,0.2663056]
[1646428064263,0.41514918,39483.0,39479.0,0.3163056]